bitfinex-derivatives/quotes_SOLF0:USTF0_20240925
["timestamp","ask_amount","ask_price","bid_price","bid_amount"]
[1727305511674,10.32,148.78,148.77,3.361]
[1727305512273,10.32,148.79,148.78,3.3607]
[1727305512478,10.32,148.8,148.75,10.32]
[1727305512880,10.32,148.8,148.79,3.3605]
[1727305513483,10.32,148.81,148.8,3.3603]
[1727305513680,2.603,148.83,148.77,10.32]
[1727305513985,11.6082,148.83,148.82,3.3599]
[1727305516382,3.3584,148.89,148.81,10.32]
[1727305516580,10.32,148.86,148.81,10.32]
[1727305517279,10.32,148.86,148.85,3.359]
[1727305517475,10.32,148.86,148.78,3.39631522]
[1727305517476,10.32,148.86,148.8,10.32]
[1727305517682,10.32,148.84,148.8,10.32]
[1727305518084,5.9581,148.88,148.81,10.32]
[1727305518085,10.32,148.85,148.81,10.32]
[1727305518284,10.32,148.87,148.82,10.32]
[1727305519179,10.32,148.87,148.86,3.3588]
[1727305519875,12.9195,148.88,148.87,3.3588]
[1727305520774,11.6369,148.88,148.87,3.3588]
[1727305521175,11.6369,148.88,148.86,3.3589]
[1727305523778,11.6369,148.88,148.83,10.32]
[1727305523984,10.32,148.87,148.82,10.32]
[1727305524581,10.32,148.86,148.81,10.32]
[1727305524982,10.32,148.86,148.83,3.3595]
[1727305525682,4.6755,148.88,148.81,10.32]
[1727305525877,10.32,148.86,148.82,10.32]
[1727305526189,10.32,148.87,148.82,10.32]
[1727305526693,10.32,148.87,148.84,3.3594]
[1727305527587,10.32,148.87,148.83,3.3596]
[1727305529489,1.3169,148.88,148.84,10.32]
[1727305529886,11.6369,148.88,148.85,3.3591]
[1727305530078,10.32,148.87,148.85,3.3591]
[1727305530488,10.32,148.87,148.83,10.32]
[1727305531190,10.32,148.87,148.85,3.3592]
[1727305531691,10.32,148.87,148.83,10.32]
[1727305531889,10.32,148.86,148.84,3.3593]
[1727305532397,10.32,148.85,148.81,10.32]
[1727305532589,10.32,148.85,148.82,3.3597]
[1727305532790,10.32,148.85,148.81,10.32]
[1727305533191,10.32,148.85,148.83,3.3596]
[1727305535291,10.32,148.85,148.81,3.36]
[1727305535596,10.32,148.84,148.79,10.32]
[1727305536389,13.6795,148.84,148.81,3.3599]
[1727305536991,10.32,148.82,148.74,81.8907]
[1727305537191,10.32,148.81,148.76,10.32]
[1727305537688,13.6803,148.8,148.77,3.3609]
[1727305538295,10.32,148.8,148.78,3.3608]
[1727305538495,10.32,148.79,148.71,1.3831]
[1727305538689,10.32,148.77,148.74,3.3615]
[1727305538890,10.32,148.77,148.72,10.32]
[1727305539292,10.32,148.78,148.76,3.3612]
[1727305539598,10.32,148.79,148.76,3.3612]
[1727305541618,10.32,148.77,148.71,1.3831]
[1727305541797,10.32,148.76,148.71,11.7031]
[1727305542096,3.3606,148.79,148.74,3.3615]
[1727305542393,10.32,148.78,148.74,3.3615]
[1727305545598,13.6808,148.78,148.74,3.3615]
[1727305547201,13.681,148.77,148.74,3.3615]
[1727305549705,10.32,148.77,148.74,3.3615]
[1727305550403,10.32,148.75,148.69,10.32]
[1727305551803,10.32,148.74,148.69,10.32]
[1727305552001,10.32,148.74,148.68,11.6543]
[1727305552302,10.32,148.74,148.71,3.3622]
[1727305553005,10.32,148.72,148.71,3.3622]
[1727305555612,3.3618,148.74,148.71,3.3622]
[1727305555804,10.32,148.73,148.71,3.3622]
[1727305556109,10.32,148.75,148.7,10.32]
[1727305556810,10.32,148.75,148.67,66.19941835]
[1727305557107,10.32,148.75,148.69,10.32]
[1727305557602,13.6815,148.75,148.72,3.362]
[1727305558011,10.32,148.74,148.72,3.362]
[1727305558205,13.6817,148.74,148.72,3.362]
[1727305558403,10.32,148.73,148.72,3.362]
[1727305558609,10.32,148.74,148.72,3.362]
[1727305560215,10.32,148.73,148.71,3.3623]
[1727305560710,10.32,148.74,148.68,10.32]
[1727305561008,10.32,148.76,148.71,10.32]
[1727305561206,10.32,148.77,148.73,10.32]
[1727305561403,10.32,148.77,148.72,10.32]
[1727305562103,10.32,148.76,148.68,1.2346]
[1727305562404,10.32,148.76,148.7,10.32]
[1727305562599,10.32,148.78,148.73,10.32]
[1727305562904,10.32,148.79,148.73,10.32]
[1727305563402,10.32,148.79,148.76,3.3612]
[1727305563808,10.32,148.79,148.74,10.32]
[1727305564004,10.32,148.79,148.77,3.361]
[1727305564908,11.594,148.8,148.76,10.32]
[1727305565104,14.21028584,148.89,148.78,10.32]
[1727305565303,14.21028584,148.89,148.77,3.28646569]
[1727305565304,10.32,148.85,148.77,3.28646569]
[1727305565512,10.32,148.85,148.82,3.3597]
[1727305566012,10.32,148.85,148.8,10.32]
[1727305566210,3.3586,148.88,148.8,10.32]
[1727305566417,10.32,148.87,148.82,10.32]
[1727305566900,10.32,148.87,148.84,3.3593]
[1727305567106,10.32,148.85,148.8,10.32]
[1727305567508,10.32,148.86,148.8,10.32]
[1727305568107,10.32,148.86,148.84,3.3594]
[1727305568316,3.3587,148.88,148.84,3.3594]
[1727305568317,19.4887,148.88,148.84,3.3594]
[1727305568714,4.1189,148.89,148.81,16.13]
[1727305570003,7.4772,148.89,148.81,16.13]
[1727305570420,19.4887,148.88,148.83,3.3595]
[1727305571706,3.3588,148.87,148.83,3.3595]
[1727305573415,16.13,148.88,148.84,3.3593]
[1727305573622,4.1189,148.89,148.8,16.13]
[1727305574215,1.358,148.89,148.86,3.3589]
[1727305574623,1.358,148.89,148.86,3.3588]
[1727305575525,1.358,148.89,148.85,3.3591]
[1727305577828,1.358,148.89,148.86,3.3589]
[1727305578618,4.7164,148.89,148.8,16.13]
[1727305579723,4.7164,148.89,148.85,3.359]
[1727305579932,1.358,148.89,148.82,16.13]
[1727305580625,1.358,148.89,148.86,3.3588]
[1727305581027,1.358,148.89,148.82,16.13]
[1727305581426,1.358,148.89,148.86,3.3588]
[1727305582726,1.358,148.89,148.87,3.3587]
[1727305582926,1.358,148.89,148.84,16.13]
[1727305583135,18.831,148.94,148.86,16.13]
[1727305583433,2.701,148.94,148.86,16.13]
[1727305583832,3.358,148.91,148.87,3.3586]
[1727305584036,2.701,148.94,148.86,16.13]
[1727305584642,18.831,148.94,148.86,16.13]
[1727305584936,3.3579,148.91,148.88,3.3585]
[1727305585328,18.831,148.94,148.88,3.3585]
[1727305585729,3.3577,148.92,148.88,3.3585]
[1727305586231,3.3577,148.92,148.85,16.13]
[1727305586534,3.3575,148.93,148.85,16.13]
[1727305587924,3.3575,148.93,148.88,3.3584]
[1727305588533,3.3577,148.92,148.88,3.3584]
[1727305588732,18.831,148.94,148.85,16.13]
[1727305588928,2.701,148.94,148.85,16.13]
[1727305589736,2.701,148.94,148.87,16.13]
[1727305590131,3.3576,148.92,148.89,3.3583]
[1727305592137,18.831,148.94,148.85,16.13]
[1727305592335,16.13,148.9,148.82,80.66]
[1727305592535,3.3586,148.88,148.85,3.3592]
[1727305592841,3.3586,148.88,148.81,16.13]
[1727305593028,4.7413,148.89,148.85,3.3592]
[1727305595743,1.3829,148.89,148.81,16.13]
[1727305596342,3.3586,148.88,148.84,3.3593]
[1727305596731,1.3829,148.89,148.83,16.13]
[1727305596937,4.7412,148.89,148.86,3.359]
[1727305597232,1.3829,148.89,148.86,3.359]
[1727305597437,1.3829,148.89,148.87,3.3587]
[1727305597640,1.3829,148.89,148.83,16.13]
[1727305598036,1.3829,148.89,148.81,16.13]
[1727305598841,3.3588,148.87,148.81,16.13]
[1727305599243,1.3829,148.89,148.79,16.13]
[1727305599446,3.3588,148.87,148.83,3.3596]
[1727305599638,2.7172,148.89,148.81,16.13]
[1727305600330,3.3587,148.88,148.83,3.3596]
[1727305600542,3.3587,148.88,148.81,16.13]
[1727305601839,3.3587,148.88,148.83,3.3596]
[1727305602046,3.3588,148.87,148.83,3.3596]
[1727305602434,2.7172,148.89,148.81,16.13]
[1727305602745,3.3589,148.87,148.81,16.13]
[1727305603146,3.3589,148.87,148.83,3.3595]
[1727305603550,3.3589,148.87,148.81,16.13]
[1727305603746,3.3586,148.88,148.84,3.3592]
[1727305604048,2.7172,148.89,148.84,3.3592]
[1727305604251,3.3589,148.87,148.83,3.3595]
[1727305604642,2.7172,148.89,148.81,16.13]
[1727305604844,16.13,148.88,148.78,99.3083]
[1727305605148,17.4654,148.88,148.78,99.3083]
[1727305605443,3.3592,148.85,148.78,99.3083]
[1727305605846,3.3592,148.85,148.81,3.36]
[1727305606044,3.3595,148.84,148.78,98.0756]
[1727305606556,3.3595,148.84,148.8,3.3603]
[1727305606947,16.13,148.86,148.79,3.3604]
[1727305607146,16.13,148.84,148.76,16.13]
[1727305608257,16.13,148.84,148.78,3.3607]
[1727305608258,3.36,148.82,148.78,3.3607]
[1727305608449,16.13,148.84,148.78,3.3607]
[1727305608752,3.3603,148.81,148.77,3.3609]
[1727305609149,3.3603,148.81,148.76,16.13]
[1727305610653,2.7218,148.83,148.78,16.13]
[1727305610956,1.3719,148.83,148.78,16.13]
[1727305611155,3.3599,148.82,148.79,3.3605]
[1727305611345,1.3719,148.83,148.78,16.13]
[1727305611548,4.7316,148.83,148.8,3.3601]
[1727305611745,4.7316,148.83,148.78,16.13]
[1727305612257,3.3599,148.82,148.79,3.3605]
[1727305612460,1.3719,148.83,148.79,3.3605]
[1727305612757,4.7317,148.83,148.79,3.3605]
[1727305615158,1.3719,148.83,148.74,16.13]
[1727305615356,17.5019,148.83,148.74,16.13]
[1727305615552,3.3605,148.8,148.74,16.13]
[1727305616256,3.3605,148.8,148.76,3.3611]
[1727305616645,3.3606,148.79,148.73,1.3524]
[1727305616860,3.39172831,148.82,148.73,1.3524]
[1727305616861,4.80462831,148.82,148.75,3.3613]
[1727305617158,6.09092831,148.82,148.75,3.3613]
[1727305617659,16.13,148.81,148.75,3.3613]
[1727305618155,3.3607,148.79,148.75,3.3613]
[1727305619163,3.3607,148.79,148.76,3.3612]
[1727305620354,6.09092831,148.82,148.75,13.7014]
[1727305620553,10.34,148.79,148.75,13.7014]
[1727305620752,3.361,148.77,148.74,13.7016]
[1727305621157,10.34,148.78,148.74,10.34]
[1727305621868,6.09092831,148.82,148.77,10.34]
[1727305622065,10.34,148.8,148.75,10.34]
[1727305622364,10.34,148.77,148.69,80.68]
[1727305622663,10.34,148.74,148.69,91.02]
[1727305623164,10.34,148.74,148.69,80.68]
[1727305623465,6.09092831,148.82,148.69,80.68]
[1727305623655,10.34,148.72,148.7,3.3625]
[1727305624152,6.09092831,148.82,148.63,2.5807]
[1727305624153,10.34,148.71,148.63,2.5807]
[1727305624355,16.15,148.7,148.63,2.5807]
[1727305624659,19.5127,148.7,148.65,3.3637]
[1727305624864,1.321,148.73,148.63,2.5807]
[1727305624865,17.4978,148.72,148.63,18.7307]
[1727305625265,3.3625,148.71,148.63,18.7307]
[1727305625665,3.3626,148.7,148.66,3.3633]
[1727305626852,3.3626,148.7,148.65,3.3637]
[1727305627060,3.3629,148.69,148.65,3.3637]
[1727305627261,16.15,148.69,148.62,66.21302222]
[1727305627462,16.15,148.69,148.6,84.04443771]
[1727305627867,16.15,148.69,148.64,3.3638]
[1727305628261,19.5128,148.69,148.6,100.19443771]
[1727305628866,3.3631,148.68,148.6,100.19443771]
[1727305629069,16.15,148.69,148.65,3.3637]
[1727305629368,16.15,148.69,148.6,100.19443771]
[1727305629568,3.3631,148.68,148.6,96.85]
[1727305629767,19.5131,148.68,148.6,96.85]
[1727305630268,19.5131,148.68,148.64,3.3638]
[1727305630867,3.3634,148.67,148.63,3.3641]
[1727305631066,16.15,148.68,148.6,96.85]
[1727305631370,16.15,148.69,148.6,96.85]
[1727305631861,16.15,148.69,148.65,3.3637]
[1727305632062,16.15,148.69,148.62,16.15]
[1727305632665,16.15,148.69,148.6,16.15]
[1727305633068,16.15,148.69,148.61,1.2919]
[1727305633665,3.3632,148.68,148.64,3.3638]
[1727305635469,3.3633,148.67,148.64,3.3638]
[1727305635769,1.3478,148.72,148.57,96.89]
[1727305635970,19.5143,148.63,148.57,80.74]
[1727305636165,16.15,148.63,148.58,3.3652]
[1727305636566,16.15,148.63,148.57,80.74]
[1727305636766,3.33669604,148.65,148.56,3.3657]
[1727305636767,16.15,148.61,148.56,3.3657]
[1727305636968,16.15,148.61,148.54,66.30958721]
[1727305637170,16.15,148.61,148.52,16.15]
[1727305637677,3.3649,148.6,148.52,16.15]
[1727305638166,3.30471923,148.63,148.52,16.15]
[1727305638476,16.15,148.64,148.54,16.15]
[1727305638676,3.3645,148.62,148.59,3.3651]
[1727305638873,16.15,148.62,148.54,16.15]
[1727305639081,16.15,148.6,148.52,16.15]
[1727305639268,16.15,148.6,148.58,3.3652]
[1727305639469,16.15,148.6,148.52,16.15]
[1727305640874,19.5149,148.6,148.57,3.3655]
[1727305641276,16.15,148.6,148.52,16.15]
[1727305642277,16.15,148.6,148.51,1.297]
[1727305643384,3.3651,148.59,148.51,1.297]
[1727305643778,16.15,148.6,148.51,1.297]
[1727305644175,3.3653,148.58,148.55,3.3658]
[1727305646193,3.3653,148.58,148.54,3.3661]
[1727305646389,3.3653,148.58,148.51,1.297]
[1727305646584,3.3652,148.59,148.51,1.297]
[1727305646784,16.15,148.6,148.51,1.297]
[1727305647091,16.15,148.63,148.54,16.15]
[1727305648286,19.5142,148.63,148.54,16.15]
[1727305648492,19.51487278,148.65,148.56,16.15]
[1727305648793,1.3913,148.66,148.58,16.15]
[1727305648997,1.3913,148.66,148.63,3.364]
[1727305649292,19.513,148.69,148.6,16.15]
[1727305649493,19.513,148.69,148.65,3.3636]
[1727305649799,16.15,148.69,148.6,16.15]
[1727305649984,16.15,148.69,148.63,3.3641]
[1727305649985,3.3633,148.67,148.63,3.3641]
[1727305650189,16.15,148.69,148.6,16.15]
[1727305650604,3.363,148.68,148.6,16.15]
[1727305651391,3.3633,148.67,148.64,3.3638]
[1727305652388,3.3631,148.68,148.65,3.3637]
[1727305653594,3.3631,148.68,148.64,3.3639]
[1727305657398,16.15,148.69,148.62,16.15]
[1727305657811,19.5129,148.69,148.66,3.3633]
[1727305657995,16.15,148.69,148.66,3.3633]
[1727305658194,16.15,148.69,148.62,16.15]
[1727305658407,7.2722,148.73,148.64,16.15]
[1727305658605,10.63402527,148.73,148.64,16.15]
[1727305658910,16.15,148.72,148.64,16.15]
[1727305659204,3.3624,148.71,148.68,3.363]
[1727305659404,3.3624,148.71,148.62,16.15]
[1727305659708,16.15,148.7,148.67,3.3631]
[1727305660304,16.15,148.7,148.68,3.363]
[1727305661009,16.15,148.7,148.62,16.15]
[1727305661201,19.5127,148.7,148.62,16.15]
[1727305661803,19.5127,148.7,148.66,3.3634]
[1727305664612,19.5127,148.7,148.67,3.3632]
[1727305665109,16.15,148.7,148.67,3.3632]
[1727305666904,19.5126,148.7,148.67,3.3632]
[1727305667410,19.5126,148.7,148.62,16.15]
[1727305667616,16.15,148.7,148.66,3.3635]
[1727305668415,19.5127,148.7,148.66,3.3635]
[1727305668711,3.3628,148.69,148.66,3.3635]
[1727305670213,19.5127,148.7,148.66,3.3635]
[1727305670417,10.34,148.68,148.66,3.3635]
[1727305672119,10.34,148.67,148.58,80.76]
[1727305672322,10.34,148.62,148.58,80.76]
[1727305672620,10.34,148.62,148.59,3.365]
[1727305673918,10.34,148.62,148.58,80.76]
[1727305674115,2.6464,148.66,148.58,80.76]
[1727305674417,16.16,148.65,148.6,3.3647]
[1727305675014,3.3641,148.64,148.6,3.3647]
[1727305675518,16.16,148.63,148.52,16.16]
[1727305675715,16.16,148.63,148.52,17.5679]
[1727305675915,16.16,148.63,148.53,1.2389]
[1727305676121,3.3644,148.62,148.57,3.3653]
[1727305676812,3.3647,148.61,148.56,3.3657]
[1727305677008,16.16,148.6,148.53,1.2389]
[1727305677211,16.16,148.59,148.48,16.16]
[1727305677408,3.3654,148.58,148.53,3.3663]
[1727305677613,17.4741,148.59,148.5,16.16]
[1727305677809,17.4741,148.59,148.54,3.3661]
[1727305677810,4.6793,148.59,148.54,3.3661]
[1727305678019,1.3141,148.59,148.54,3.3661]
[1727305678818,16.16,148.58,148.46,1.2389]
[1727305679016,16.16,148.58,148.47,16.16]
[1727305679225,3.3656,148.57,148.53,3.3664]
[1727305679419,16.16,148.58,148.53,3.3664]
[1727305679918,19.5255,148.58,148.54,3.3662]
[1727305680426,16.16,148.62,148.53,19.48659796]
[1727305680618,16.16,148.62,148.54,1.2835]
[1727305680824,3.3647,148.61,148.54,3.2885443]
[1727305681016,3.3647,148.61,148.52,16.16]
[1727305681218,16.16,148.62,148.53,3.33636053]
[1727305681420,16.16,148.6,148.53,3.33636053]
[1727305682219,16.16,148.55,148.45,3.39259259]
[1727305682423,16.16,148.54,148.46,83.4061]
[1727305682626,16.16,148.52,148.46,83.4061]
[1727305683017,19.5267,148.52,148.46,83.4061]
[1727305683217,16.16,148.52,148.46,83.4061]
[1727305683427,3.4340134,148.55,148.46,80.8]
[1727305683428,16.16,148.5,148.46,80.8]
[1727305683924,19.5272,148.5,148.46,80.8]
[1727305684324,16.16,148.49,148.41,16.16]
[1727305684515,7.37214393,148.59,148.42,1.3653]
[1727305684721,16.16,148.51,148.42,1.3653]
[1727305685028,16.16,148.49,148.3,340.0]
[1727305685216,16.16,148.53,148.38,2.7467]
[1727305685217,1.3103,148.5,148.38,2.7467]
[1727305685415,16.16,148.47,148.38,18.9067]
[1727305685823,16.16,148.47,148.4,3.3693]
[1727305686129,16.16,148.47,148.38,18.9067]
[1727305686315,16.16,148.47,148.39,3.3694]
[1727305686515,16.16,148.44,148.33,19.4521159]
[1727305686716,16.16,148.42,148.33,17.5253]
[1727305686922,1.3103,148.5,148.37,16.16]
[1727305687119,16.16,148.47,148.37,16.16]
[1727305687315,3.3687,148.44,148.38,3.3696]
[1727305687627,16.16,148.47,148.36,16.16]
[1727305687826,3.3685,148.44,148.39,3.3696]
[1727305688019,3.3685,148.44,148.36,16.16]
[1727305688329,3.3685,148.44,148.35,25.89]
[1727305688724,3.3683,148.45,148.35,25.89]
[1727305688916,25.89,148.47,148.42,3.3689]
[1727305689923,3.38154092,148.49,148.37,25.89]
[1727305689924,29.27154092,148.49,148.37,25.89]
[1727305690318,1.3103,148.5,148.39,25.89]
[1727305690523,1.3103,148.5,148.42,25.89]
[1727305690925,1.3103,148.5,148.48,3.3675]
[1727305691131,1.3103,148.5,148.42,25.89]
[1727305691334,32.6185,148.63,148.41,3.29569964]
[1727305691335,25.89,148.57,148.44,25.89]
[1727305691525,3.366,148.55,148.44,25.89]
[1727305692029,25.89,148.57,148.44,25.89]
[1727305693128,25.89,148.57,148.48,3.3674]
[1727305693428,25.89,148.57,148.44,25.89]
[1727305693921,3.3664,148.54,148.49,3.3672]
[1727305694426,3.3666,148.53,148.48,3.3674]
[1727305695028,25.89,148.57,148.49,3.3673]
[1727305695635,3.3664,148.54,148.44,25.89]
[1727305696721,3.3665,148.53,148.44,25.89]
[1727305696932,3.3665,148.53,148.49,3.3672]
[1727305700632,25.89,148.57,148.44,25.89]
[1727305701131,3.3661,148.55,148.51,3.3669]
[1727305701639,25.89,148.57,148.51,3.3669]
[1727305701831,3.3658,148.56,148.51,3.3669]
[1727305702041,3.3658,148.56,148.44,25.89]
[1727305702630,28.707,148.59,148.47,25.89]
[1727305702931,28.707,148.59,148.49,25.89]
[1727305702932,2.817,148.59,148.49,25.89]
[1727305703135,25.89,148.57,148.45,25.89]
[1727305703726,3.366,148.55,148.45,25.89]
[1727305703931,25.89,148.57,148.45,25.89]
[1727305704123,2.817,148.59,148.48,25.89]
[1727305704327,1.4018,148.59,148.48,25.89]
[1727305704537,1.4018,148.59,148.49,2.6734]
[1727305704727,1.4018,148.59,148.5,25.89]
[1727305705435,1.4018,148.59,148.56,3.3657]
[1727305706533,4.7669,148.59,148.55,3.3659]
[1727305706936,1.4018,148.59,148.55,3.3659]
[1727305707532,4.767,148.59,148.55,3.3659]
[1727305707725,1.4018,148.59,148.5,25.89]
[1727305708126,1.4018,148.59,148.57,3.3654]
[1727305708535,1.4018,148.59,148.5,25.89]
[1727305708736,1.4018,148.59,148.56,3.3656]
[1727305710939,1.4018,148.59,148.55,3.3659]
[1727305712525,4.767,148.59,148.55,3.3659]
[1727305715230,1.4018,148.59,148.51,16.17]
[1727305715435,1.4018,148.59,148.53,16.17]
[1727305715934,1.4018,148.59,148.49,2.6734]
[1727305715935,1.4018,148.59,148.51,16.17]
[1727305716335,4.767,148.59,148.55,3.3659]
[1727305719038,1.4018,148.59,148.51,16.17]
[1727305719247,1.4018,148.59,148.49,18.8434]
[1727305719248,16.17,148.58,148.49,18.8434]
[1727305719636,3.3656,148.57,148.49,18.8434]
[1727305720137,3.3656,148.57,148.53,3.3663]
[1727305720440,3.3656,148.57,148.49,18.8434]
[1727305720936,3.3656,148.57,148.54,3.3661]
[1727305721642,3.3654,148.58,148.55,3.366]
[1727305721839,1.4018,148.59,148.55,3.366]
[1727305722536,4.767,148.59,148.55,3.366]
[1727305722742,1.4018,148.59,148.55,3.366]
[1727305722938,1.4018,148.59,148.54,3.3661]
[1727305723144,3.3658,148.56,148.49,2.6734]
[1727305723333,16.17,148.58,148.52,3.3665]
[1727305723539,16.17,148.58,148.49,2.6734]
[1727305723845,3.3662,148.55,148.49,2.6734]
[1727305724340,3.3664,148.53,148.45,80.82]
[1727305724549,16.17,148.5,148.42,1.2939]
[1727305724741,1.3707,148.52,148.44,3.3683]
[1727305724942,16.17,148.48,148.4,16.17]
[1727305725439,16.17,148.48,148.42,3.3688]
[1727305725747,16.17,148.48,148.39,1.2818]
[1727305726044,3.3679,148.47,148.39,1.2818]
[1727305726242,3.3679,148.47,148.4,16.17]
[1727305726744,3.3679,148.47,148.43,3.3685]
[1727305726938,3.3679,148.47,148.4,16.17]
[1727305727739,3.3676,148.48,148.4,16.17]
[1727305727934,19.59422812,148.49,148.4,16.17]
[1727305728140,19.59422812,148.49,148.43,3.3686]
[1727305728342,3.3678,148.47,148.43,3.3686]
[1727305729443,19.5378,148.47,148.43,3.3686]
[1727305731146,3.368,148.46,148.43,3.3686]
[1727305733148,19.5379,148.47,148.43,3.3686]
[1727305733337,16.17,148.47,148.43,3.3686]
[1727305734042,16.17,148.47,148.38,17.4639]
[1727305734545,3.3683,148.45,148.38,17.4639]
[1727305735143,16.17,148.47,148.38,16.17]
[1727305735344,3.42422812,148.49,148.38,16.17]
[1727305735546,16.17,148.46,148.38,16.17]
[1727305735846,3.3684,148.45,148.41,3.369]
[1727305736150,3.3684,148.45,148.38,16.17]
[1727305736740,3.3681,148.46,148.39,16.17]
[1727305737352,3.3681,148.46,148.42,3.3688]
[1727305737953,3.3681,148.46,148.43,3.3686]
[1727305738155,16.17,148.48,148.39,16.17]
[1727305738751,3.3678,148.47,148.39,16.17]
[1727305739055,3.3678,148.47,148.44,3.3684]
[1727305740260,16.17,148.48,148.45,3.3681]
[1727305740861,4.69545939,148.51,148.44,3.3684]
[1727305741059,16.17,148.48,148.44,3.3684]
[1727305741257,100.0,148.47,148.44,3.3684]
[1727305741859,103.3679,148.47,148.43,3.3686]
[1727305742251,3.3683,148.45,148.38,16.17]
[1727305742760,3.3683,148.45,148.42,3.3689]
[1727305742957,19.5381,148.46,148.42,3.3689]
[1727305743360,16.17,148.46,148.42,3.3689]
[1727305743662,19.5381,148.46,148.42,3.3689]
[1727305744450,3.3684,148.45,148.42,3.3689]
[1727305744763,16.17,148.46,148.41,3.3691]
[1727305744961,19.5386,148.44,148.36,1.3034]
[1727305745262,19.5386,148.44,148.4,3.3693]
[1727305745565,16.17,148.44,148.36,1.3034]
[1727305745868,16.17,148.44,148.39,3.3694]
[1727305746157,3.3689,148.43,148.39,3.3694]
[1727305746361,3.3689,148.43,148.4,3.3693]
[1727305747160,19.5386,148.44,148.4,3.3693]
[1727305749358,19.5386,148.44,148.41,3.3691]
[1727305753460,1.4047,148.45,148.37,16.17]
[1727305754261,1.4047,148.45,148.43,3.3686]
[1727305756569,100.0,148.47,148.41,19.55400862]
[1727305756767,100.0,148.47,148.42,17.4661]
[1727305757465,100.0,148.47,148.46,3.368]
[1727305757670,100.0,148.47,148.4,16.17]
[1727305758274,103.3678,148.47,148.4,16.17]
[1727305758468,16.17,148.46,148.38,16.17]
[1727305759368,3.3683,148.45,148.42,3.3688]
[1727305759567,3.3683,148.45,148.38,16.17]
[1727305761771,3.3683,148.45,148.42,3.3687]
[1727305761971,3.3683,148.45,148.38,16.17]
[1727305762171,16.17,148.44,148.37,1.2913]
[1727305762380,16.17,148.44,148.39,3.3695]
[1727305762576,16.17,148.44,148.37,1.2913]
[1727305762778,3.3688,148.43,148.37,1.2913]
[1727305763176,3.3688,148.43,148.39,3.3695]
[1727305763377,16.17,148.44,148.35,82.56512401]
[1727305763573,17.4643,148.44,148.35,82.56512401]
[1727305763971,17.4643,148.44,148.39,3.3695]
[1727305764281,17.4643,148.44,148.35,82.56512401]
[1727305764486,20.8329,148.44,148.4,3.3692]
[1727305764875,20.8329,148.44,148.35,82.56512401]
[1727305765078,17.4643,148.44,148.35,82.56512401]
[1727305765284,1.3711,148.45,148.37,16.17]
[1727305766171,3.3685,148.44,148.41,3.3691]